Cogmind - Beta 13 @@@ ROGUE MODE // 2024.05.04 @ 14:37:10 Player: teroshan Result: Destroyed by G-47 Trooper with Particle Gun Performance ------------- Evolutions (1) 500 Regions Visited (2) 400 Robots Destroyed (9) 45 Value Destroyed (193) 193 Prototype IDs (1) 20 Alien Tech Used (0) 0 Bonus (0) 0 TOTAL SCORE: 1158 Bonus ------- None Cogmind --------- Core Integrity 0/400 Matter 117/300 Energy 99/100 System Corruption 0% Temperature Cool (9) Movement Core (350) Ox6 Location -9/Materials Parts ------- > --- POWER (2) -------- (None) > --- PROPULSION (2) --- (None) > --- UTILITY (3) ------ Large Storage Unit Improved Terrain Scan Processor Improved Terrain Scan Processor > --- WEAPON (2) ------- (None) > --- INVENTORY (15) --- Small Storage Unit Medium Storage Unit Large Battery (200) Particle Charger Particle Charger Power Shielding Peak State ------------ > --- POWER ------------ Light Ion Engine Light Ion Engine > --- PROPULSION ------- Compact Wheel Compact Wheel > --- UTILITY ---------- Large Storage Unit Improved Terrain Scan Processor Improved Terrain Scan Processor > --- WEAPON ----------- Advanced Beam Rifle Datajack > --- INVENTORY -------- Compact Wheel Compact Wheel Small Storage Unit Medium Storage Unit Large Battery Particle Charger Particle Charger Power Shielding Hardened Light Armor Plating Hardened Light Armor Plating Advanced Beam Rifle Grenade Launcher [Rating: 18] Favorites ----------- Power Light Ion Engine Engine Light Ion Engine Propulsion Compact Wheel Leg Aluminum Leg Wheel Compact Wheel Utility Small Storage Unit Device ECM Suite Storage Small Storage Unit Processor Improved Terrain Scan Processor Protection Power Shielding Weapon Light Assault Rifle Energy Gun Advanced Beam Rifle Ballistic Gun Light Assault Rifle Launcher Grenade Launcher Special Melee Weapon Datajack Build | -11 -10 -9 ------- Run | Yrd Mat Mat Slots Evolved 2 | . . 2 Power 1 | . . 1 Propulsion . | . . . Utility 1 | . . 1 Weapon . | . . . Parts Attached 25 | 8 6 11 Power 2 | 1 . 1 Engine 2 | 1 . 1 Core . | . . . Reactor . | . . . Propulsion 6 | 3 1 2 Treads . | . . . Leg 1 | 1 . . Wheel 5 | 2 1 2 Hover . | . . . Flight . | . . . Utility 8 | 1 3 4 Device 1 | . 1 . Storage 4 | 1 1 2 Processor 2 | . . 2 Hackware . | . . . Protection 1 | . 1 . Artifact . | . . . Weapon 9 | 3 2 4 Energy Gun 3 | 1 . 2 Energy Cannon . | . . . Ballistic Gun 2 | 2 . . Ballistic Cannon . | . . . Launcher 2 | . 1 1 Special Weapon . | . . . Impact Weapon . | . . . Slashing Weapon . | . . . Piercing Weapon . | . . . Special Melee Weapon 2 | . 1 1 Unidentified Prototypes 1 | . . 1 Parts Lost 11 | . 1 10 Power 2 | . . 2 Propulsion 4 | . . 4 Utility 1 | . 1 . Weapon 4 | . . 4 Highest Loss Streak 8 | . 1 8 To Critical Strikes . | . . . Average Slot Usage (%) 90 | . 98 77 Engine 13 | . 14 13 Wheel 22 | . 27 14 Device 5 | . 9 . Storage 14 | . 15 12 Processor 5 | . . 14 Protection 3 | . 2 3 Energy Gun 3 | . . 8 Ballistic Gun 11 | . 15 4 Launcher 1 | . 2 . Special Melee Weapon 7 | . 9 5 Naked Turns . | . . . Heaviest Build 39 | 10 14 39 Greatest Support 32 | 26 32 32 Greatest Overweight (x) 7 | 3 . 7 Average Overweight (x) . | . . 1 Largest Inventory Capacity 15 | 8 8 15 Average Capacity 9 | 7 8 13 Most Carried 12 | 8 8 12 Average Carried 7 | 3 7 7 Final Capacity 15 | 8 8 15 Final Carried 7 | 6 7 6 Class Distribution -------------------- 100% | Mutant Dominant Class ---------------- Mutant | -10/Materials Mutant | -9/Materials Resources | -11 -10 -9 ----------- Run | Yrd Mat Mat Matter Collected 299 | 244 39 16 Remotely . | . . . Salvage Created 146 | . 111 35 Parts 18 | . 13 5 Haulers Intercepted . | . . . Recyclers Shooed . | . . . Parts Field Recycled . | . . . Retrieved Matter . | . . . Parts Self-Destructed . | . . . Prevented . | . . . Kills | -11 -10 -9 ------- Run | Yrd Mat Mat Combat Hostiles Destroyed 7 | . 3 4 Guns 2 | . . 2 AOE 5 | . 3 2 Classes Destroyed 4 | . 3 1 Builder 1 | . 1 . Watcher 1 | . 1 . Swarmer 4 | . . 4 Grunt 3 | . 3 . Best Kill Streak 5 | . 5 4 Combat Bots Only 4 | . 3 4 Max Kills in Single Turn 3 | . 1 3 Gunslinging . | . . . Exploded 2 | . 1 2 Melee . | . . . Uniques/NPCs Destroyed . | . . . Combat | -11 -10 -9 -------- Run | Yrd Mat Mat Hostile Shots Fired 116 | . 14 102 Missed 30 | . 4 26 Damage Taken 1132 | . 173 959 Core 498 | . 87 411 Absorbed by Shields . | . . . Core Remaining (%) 82 | 100 65 . Volleys Fired 12 | . 7 5 Largest 2 | . 2 2 Hottest 122 | . 50 122 Shots Fired 21 | . 14 7 Gun 13 | . 7 6 Cannon . | . . . Launcher 8 | . 7 1 Special . | . . . Kinetic 7 | . 7 . Thermal 6 | . . 6 Explosive 8 | . 7 1 Electromagnetic . | . . . Robot Hit Streak 3 | . 3 3 Robot Miss Streak 3 | . 3 2 Penetration Max . | . . . Secondary Targets . | . . . Shots Hit Robots 12 | . 8 4 Core Hits 15 | . 10 5 Critical Kills . | . . . Critical Parts Destroyed . | . . . Critical Strikes 1 | . . 1 Burn 1 | . . 1 Melee Attacks 7 | . 7 . Impact . | . . . Slashing . | . . . Piercing . | . . . Sneak Attacks . | . . . Combat Hostiles . | . . . Follow-up Attacks . | . . . Damage Inflicted 509 | . 311 198 Guns 80 | . . 80 Cannons . | . . . Explosions 429 | . 311 118 Melee . | . . . Ramming . | . . . Kinetic . | . . . Thermal 80 | . . 80 Explosive 429 | . 311 118 Electromagnetic . | . . . Impact . | . . . Slashing . | . . . Piercing . | . . . Highest Corruption 1 | . 1 . Average Corruption 1 | . 1 . Corruption Purged . | . . . Corruption Blocked . | . . . Overload Shots . | . . . Overflow Damage 69 | . . 69 Projectiles . | . . . Explosions 69 | . . 69 Melee . | . . . Knockbacks . | . . . Impact . | . . . Kinetic . | . . . Secondary . | . . . Self-Inflicted Damage 157 | . 43 114 Shots 4 | . 2 2 Rammed . | . . . Targets Rammed . | . . . Kicked . | . . . Crushed . | . . . Highest Temperature 51 | . 20 51 Average Temperature 15 | . 10 19 Received Heat Transfer 435 | . 87 348 Siege Activations . | . . . Robots Corrupted . | . . . Combat Hostiles . | . . . Parts Fried . | . . . Impact Corruptions . | . . . Robots Melted . | . . . Combat Hostiles . | . . . Parts Melted 1 | . . 1 Heat Transferred 222 | . . 222 Parts Sabotaged . | . . . Parts Stolen . | . . . Parts Stripped . | . . . Power Chain Reactions . | . . . Alert | -11 -10 -9 ------- Run | Yrd Mat Mat Peak Influence 191 | . 191 135 Initial 80 | . . 80 Average 53 | . 42 97 Maximum Alert Level . | . . . Low Security (%) 100 | 100 100 100 Level 1 . | . . . Level 2 . | . . . Level 3 . | . . . Level 4 . | . . . Level 5 . | . . . High Security . | . . . Max Security . | . . . Squads Dispatched 2 | . 2 . Investigation 1 | . 1 . Extermination . | . . . Reinforcement 1 | . 1 . Assault . | . . . Garrison . | . . . Intercept . | . . . Searches Triggered . | . . . Construction Impeded . | . . . Haulers Reinforced . | . . . Active Scanning Responses . | . . . Cargo Convoy Interrupts . | . . . Stealth | -11 -10 -9 --------- Run | Yrd Mat Mat Distress Signals 1 | . 1 . Communications Jammed . | . . . Distress Signals . | . . . Times Spotted 17 | . 11 6 Peak Tracking Total 6 | . 4 6 Tactical Retreats 3 | . 3 . Traps | -11 -10 -9 ------- Run | Yrd Mat Mat Traps Triggered 2 | . 2 . Indirectly . | . . . Trap Hack Attempts . | . . . Triggered . | . . . Disarmed . | . . . Reprogrammed . | . . . Reused . | . . . Traps Extracted . | . . . Installed . | . . . Triggered . | . . . Machines | -11 -10 -9 ---------- Run | Yrd Mat Mat Machines Disabled 3 | . 1 2 Max in Single Turn 1 | . 1 1 Machines Repaired . | . . . Machines Dismantled . | . . . Machines Sabotaged . | . . . Overloaded Fab Kills . | . . . Hacking | -11 -10 -9 --------- Run | Yrd Mat Mat Machines Accessed 2 | . 1 1 Terminals 1 | . 1 . Fabricators . | . . . Repair Stations . | . . . Recycling Units . | . . . Scanalyzers 1 | . . 1 Garrison Access . | . . . Total Hacks 4 | . 1 3 Successful 2 | . . 2 Failed 2 | . 1 1 Catastrophic 1 | . 1 . Database Lockouts . | . . . Manual . | . . . Terminals 1 | . 1 . Fabricators . | . . . Repair Stations . | . . . Recycling Units . | . . . Scanalyzers 3 | . . 3 Garrison Access . | . . . Terminal Hacks . | . . . Fabricator Hacks . | . . . Repair Station Hacks . | . . . Recycling Unit Hacks . | . . . Scanalyzer 2 | . . 2 Insert Component 1 | . . 1 Analyze 1 | . . 1 Garrison Access Hacks . | . . . Unauthorized Hacks . | . . . Terminals . | . . . Fabricators . | . . . Repair Stations . | . . . Recycling Units . | . . . Scanalyzers . | . . . Garrison Access . | . . . Data Cores Recovered . | . . . Used . | . . . Hacking Detections 2 | . 1 1 Full Trace Events . | . . . Feedback Events . | . . . Feedback Blocked . | . . . Robot Schematics Acquired . | . . . Robots Built . | . . . Authchips . | . . . Time . | . . . Total Robot Build Rating . | . . . Part Schematics Acquired 1 | . . 1 Parts Built . | . . . Authchips . | . . . Time . | . . . Total Part Build Rating . | . . . Parts Repaired . | . . . Time . | . . . Parts Recycled . | . . . Recycled Matter . | . . . Retrieved Matter . | . . . Retrieved Components . | . . . Parts Scanalyzed 1 | . . 1 Part Schematics Acquired 1 | . . 1 Parts Damaged . | . . . Bothacking | -11 -10 -9 ------------ Run | Yrd Mat Mat Used RIF Installer . | . . . Robots Hacked 2 | . 2 . Non-combat 1 | . 1 . Combat 1 | . 1 . Robot Hacks Applied 2 | . 2 . parse_system 2 | . 2 . Relay Couplers Released . | . . . Fabnet Peak Effective % . | . . . Robots Rewired . | . . . Allies Hacked . | . . . Hacks Repelled . | . . . Allies | -11 -10 -9 -------- Run | Yrd Mat Mat Total Allies . | . . . Largest Group . | . . . Highest-Rated Group . | . . . Highest-Rated Ally . | . . . Total Orders . | . . . Ally Attacks . | . . . Total Damage . | . . . Kills . | . . . Allies Corrupted . | . . . Allies Melted . | . . . Intel | -11 -10 -9 ------- Run | Yrd Mat Mat Robot Analysis Total . | . . . Derelict Logs Recovered . | . . . Drone Launches . | . . . Drone Recoveries . | . . . Exploration | -11 -10 -9 ------------- Run | Yrd Mat Mat Turns Passed 586 | 96 292 198 Spaces Moved 418 | 67 235 116 Core 54 | 38 . 16 Treads . | . . . Legs . | . . . Wheels 364 | 29 235 100 Hover . | . . . Flight . | . . . Fastest Speed 50 | 50 90 100 Average Speed 113 | 115 98 142 Slowest Speed 400 | 200 100 400 Overloaded Moves . | . . . Propulsion Burnouts . | . . . Robots Hopped . | . . . Cave-ins Triggered . | . . . Exploration Rate (%) 20 | 4 44 13 Regions Visited 2 Branch Regions . Pre-discovered Areas . | . . . Known Exits Taken . | . . . Unknown Exits Taken 2 | 1 1 . Scrap Searched . | . . . Spaces Dug . | . . . Terrain Destroyed 62 | . 43 19 Melee . | . . . Projectile . | . . . AOE 62 | . 43 19 Terrain Rammed . | . . . Walls Destroyed . | . . . Machines Disabled . | . . . Actions | -11 -10 -9 --------- Run | Yrd Mat Mat Total 507 | 82 281 144 Wait 5 | . 5 . Move 416 | 66 234 116 Hop . | . . . Pick Up 26 | 8 11 7 Fast Attach 9 | 4 3 2 Attach 8 | 2 1 5 Detach 1 | . . 1 Swap 8 | 2 2 4 Drop 15 | . 11 4 Fire 12 | . 7 5 Melee 7 | . 7 . Ram . | . . . Kick . | . . . Crush . | . . . Escape Stasis . | . . . Rewire . | . . . Trap . | . . . Miscellaneous . | . . . Route ------- -11/Scrapyard -10/Materials -9/Materials History --------- Turn | Location | Event 15 | -11/Scrapyard | Discovered new exit (range 15) 97 | -11/Scrapyard | Entered Materials 308 | -10/Materials | Build established: Mutant 376 | -10/Materials | Discovered new exit (range 11) 389 | -10/Materials | Entered another Materials area 389 | -9/Materials | Evolved 2 slots: Power x1, Utility x1 555 | -9/Materials | Lost 8 parts (2p4n2w) 561 | -9/Materials | Core integrity fell below 50% 582 | -9/Materials | Core integrity fell below 20% 587 | -9/Materials | Destroyed by G-47 Trooper with Particle Gun Last Messages --------------- 00524_ Nuclear Reactor explodes. 00524_ Com. Wheel destroyed. 00524_ Destroyed Com. Wheel. 00527_ R-06 Scavenger collects Lgt. Assault Rifle. 00528_ R-06 Scavenger collects Flight Unit. 00530_ Dropped Lgt. Assault Rifle. 00531_ Dropped Hrd. Light Armor Plating. 00535_ R-06 Scavenger collects Lgt. Assault Rifle. 00536_ The unstable cave ceiling collapses. 00538_ R-06 Scavenger collects Hrd. Light Armor Plating. 00542_ The unstable cave ceiling collapses. 00549_ U-05 Engineer lays Concrete. 00555_ M-13 Machinist repairs G-47 Trooper. 00555_ U-05 Engineer lays Concrete. 00572_ Adv. Beam Rifle destroyed. 00573_ U-05 Engineer lays Concrete. 00579_ Adv. Beam Rifle destroyed. 00579_ U-05 Engineer lays Concrete. 00581_ U-05 Engineer builds a Wall. 00581_ U-05 Engineer lays Concrete. Map ----- +----------------------------------------------------+ | ?????????????# # | | ?????????????# ######## ######### | | ?????????????# #??????# !##???? | | ?????????????###########??????# #???? | | ??????????????????????????????# #???? | | ??????????????????????????????# !#???? | | ??????????????????????????????# !#???? | | ??????????????????????????##### !##???? | | ??????????????????????????# ####????? | | ??????????????????????????#!! #???????? | | ??????????????????????????#!! #???????? | | ??????????????????????????# #???????? | | ??????????????????????????#[[ #???????? | | ??????????????????????????# #???????? | | ???????????????????????######## ########? | | ?????????????????????### ### # #? | | ?????????????????##### # # # """ #? | | ?????????? "????# u # """ #? | | ??????????# """??# + """ #? | | ??????????# """ # # #? | | ??????????# + g # #? | | ??????????######## ! u ######### | | ??????????# ### % | | ??????????+ % | | ??????????# | | ??????????# ###@##### # | | ??????????## ???#/#???####### | | ???????????# ???? ?????????############## | | ???????????#?????"""??????????????????????? | | ???????????????? """ ?????????????????????? | | ???????????????? """ ?????????????????????? | | ??????????????? ????????????????????? | | ???????????????#######????????????????????? | | ??????????????????????????????????????????? | | ??????????????????????????????????????????? | | ??????????????????????????????????????????? | | ??????????????????????????????????????????? | | ??????????????????????????????????????????? | | ??????????????????????????????????????????? | | ??????????????????????????????????????????? | | ??????????????????????????????????????????? | | ??????????????????????????????????????????? | | ??????????????????????????????????????????? | | ??????????????????????????????????????????? | | ??????????????????????????????????????????? | | | | | | | | | | | +----------------------------------------------------+ Best States ------------- Heat Dissipation 28 Energy Generation 15 Energy Capacity 150 Matter Stores 264 Matter Capacity 400 Sight Range 16 Terrain Scan Density 210 ECM Strength 1 Power Shielding 33 Evasion (%) 50 Item Schematics ----------------- Grenade Launcher | -9/Materials | Scanalyzed Robot Schematics ------------------ None Fabricated ------------ Nothing Alien Tech Used ----------------- None Achievements -------------- None Challenges ------------ None Game ------ Seed UltimateCoreTerrabomb Manual? 0 Play Time 00:22:22 Cumulative 2.1 hours Start 2024.05.04 @ 14:15:57 End 2024.05.04 @ 14:37:10 Sessions 1 Manual Loads 0 Difficulty Rogue Special Mode None Game No. 10 Rogue 10 Adventurer 0 Explorer 0 Win Type - Total 0 Types 0/0/0/0/0/0/0/0/0 Lore% 1 Gallery% 5 Achievement% 4 Wizard Run 0 Options --------- Layout 0 ASCII 1 Keyboard 1 Movement Vi Keybinds 0 Fullscreen 2 Font 24/Smallcaps Map View 76x50 Zoom Use 0% Tactical HUD 1 Map Filters NONE Filters NONE Steam 1 RUN: 245f7c71-2a05-4c75-8c8e-6524fe1e684c